fUSD/lending_fUSD_20250330
["ID","MTS","AMOUNT","RATE_DAILY","PERIOD"]
[356872434,1743348650815,-500.0,0.00050136,120]
[356872435,1743348650825,-500.0,0.00050136,120]
[356872436,1743348650835,-453.89506748,0.00050136,120]
[356872437,1743348650844,-725.78,0.00050136,2]
[356872438,1743348650855,-500.0,0.00050136,120]
[356872439,1743348650866,-500.0,0.00050136,120]
[356872440,1743348650876,-897.95,0.00050136,120]
[356872441,1743348650885,-500.0,0.00050136,120]
[356872442,1743348650894,-500.0,0.00050136,120]
[356872443,1743348650903,-500.0,0.00050136,120]
[356872444,1743348650913,-500.0,0.00050136,120]
[356872445,1743348650922,-500.0,0.00050136,120]
[356872446,1743348650932,-500.0,0.00050136,120]
[356872447,1743348650941,-500.0,0.00050136,120]
[356872448,1743348650951,-500.0,0.00050136,120]
[356872449,1743348650960,-500.0,0.00050136,120]
[356872450,1743348650969,-334.87519407,0.00050136,120]
[356872451,1743348650978,-601.0396336,0.00050136,120]
[356872452,1743348650988,-500.0,0.00050136,120]
[356872453,1743348650998,-509.86895995,0.00050136,120]
[356872454,1743348651007,-507.84,0.00050136,120]
[356872455,1743348651017,-1063.91,0.00050136,120]
[356872456,1743348651026,-500.0,0.00050136,7]
[356872457,1743348651036,-178.81638167,0.00050136,120]
[356872458,1743348651045,-500.0,0.00050136,120]
[356872459,1743348651054,-500.0,0.00050136,120]
[356872460,1743348651063,-202.26548953,0.00050136,120]
[356872461,1743348651073,-2000.0,0.00050136,2]
[356872462,1743348651082,-500.0,0.00050136,120]
[356872463,1743348651091,-500.0,0.00050136,120]
[356872464,1743348651100,-500.0,0.00050136,120]
[356872465,1743348651109,-500.0,0.00050136,120]
[356872466,1743348651118,-327.91,0.00050136,120]
[356872467,1743348651128,-500.0,0.00050136,120]
[356872468,1743348651137,-500.0,0.00050136,120]
[356872469,1743348651146,-612.19916477,0.00050136,120]
[356872470,1743348651156,-500.0,0.00050136,120]
[356872471,1743348651165,-500.0,0.00050136,2]
[356872472,1743348651174,-794.28,0.00050136,120]
[356872473,1743348651184,-500.0,0.00050136,120]
[356872474,1743348651193,-500.0,0.00050136,120]
[356872475,1743348651203,-454.5806787,0.00050136,120]
[356872476,1743348651212,-301.41422402,0.00050136,120]
[356872477,1743348651221,-500.0,0.00050136,120]
[356872478,1743348651230,-582.76987806,0.00050136,120]
[356872479,1743348651239,-500.0,0.00050136,120]
[356872480,1743348651249,-551.05883579,0.00050136,120]
[356872481,1743348651258,-500.0,0.00050136,120]
[356872482,1743348651267,-500.0,0.00050136,120]
[356872483,1743348651276,-500.0,0.00050136,120]
[356872484,1743348651286,-500.0,0.00050136,120]
[356872485,1743348651295,-500.0,0.00050136,120]
[356872486,1743348651304,-500.0,0.00050136,120]
[356872487,1743348651313,-500.0,0.00050136,120]
[356872488,1743348651323,-500.0,0.00050136,120]
[356872489,1743348651332,-500.0,0.00050136,120]
[356872490,1743348651341,-560.66802184,0.00050136,120]
[356872491,1743348651350,-251.9541427,0.00050136,120]
[356872492,1743348651360,-500.0,0.00050136,120]
[356872493,1743348651371,-626.68658208,0.00050136,120]
[356872494,1743348651380,-500.0,0.00050136,120]
[356872495,1743348651389,-500.0,0.00050136,120]
[356872496,1743348651398,-500.0,0.00050136,120]
[356872497,1743348651408,-561.13507964,0.00050136,120]
[356872498,1743348651417,-500.0,0.00050136,120]
[356872499,1743348651427,-500.0,0.00050136,120]
[356872500,1743348651436,-500.0,0.00050136,120]
[356872501,1743348651445,-500.0,0.00050136,120]
[356872502,1743348651454,-343.35876428,0.00050136,120]
[356872503,1743348651464,-500.0,0.00050136,120]
[356872504,1743348651577,-500.0,0.00050136,120]
[356872505,1743348651600,-584.05074666,0.00050136,120]
[356872506,1743348651610,-500.0,0.00050136,120]
[356872507,1743348651620,-500.0,0.00050136,120]
[356872508,1743348651630,-646.41229397,0.00050136,120]
[356872509,1743348651639,-500.0,0.00050136,120]
[356872510,1743348651648,-500.0,0.00050136,120]
[356872511,1743348651657,-500.0,0.00050136,120]
[356872512,1743348651667,-500.0,0.00050136,120]
[356872513,1743348651676,-1817.7,0.00050136,120]
[356872514,1743348651686,-500.0,0.00050136,120]
[356872515,1743348651697,-179.67482111,0.00050136,120]
[356872516,1743348651706,-4889.97,0.00050136,2]
[356872517,1743348651716,-500.0,0.00050136,120]
[356872518,1743348651725,-527.94,0.00050136,120]
[356872519,1743348651736,-500.0,0.00050136,120]
[356872520,1743348651745,-500.0,0.00050136,120]
[356872521,1743348651754,-190.58068825,0.00050136,120]
[356872522,1743348651763,-500.0,0.00050136,120]
[356872523,1743348651773,-500.0,0.00050136,120]
[356872524,1743348651783,-502.35846456,0.00050136,120]
[356872525,1743348651792,-500.0,0.00050136,120]
[356872526,1743348651802,-1190.48,0.00050136,120]
[356872527,1743348651812,-500.0,0.00050136,120]
[356872528,1743348651822,-500.0,0.00050136,120]
[356872529,1743348651831,-500.0,0.00050136,120]
[356872530,1743348651841,-500.0,0.00050136,120]
[356872531,1743348651850,-500.0,0.00050136,120]
[356872532,1743348651859,-1761.32,0.00050136,120]
[356872533,1743348651868,-500.0,0.00050136,100]
[356872534,1743348651877,-525.2455585,0.00050136,120]
[356872535,1743348651886,-466.30881031,0.00050136,120]
[356872536,1743348651896,-500.0,0.00050136,120]
[356872537,1743348651905,-361.66819484,0.00050136,120]
[356872538,1743348651914,-280.811991,0.00050275,5]
[356872539,1743348651924,-540.79485416,0.000503,2]
[356872540,1743348651932,-500.0,0.000503,2]
[356872541,1743348651942,-1560.44,0.000503,2]
[356872542,1743348651951,-500.0,0.00050309,120]
[356872543,1743348651960,-500.0,0.00050309,120]
[356872544,1743348651970,-500.0,0.00050309,120]
[356872545,1743348651979,-500.0,0.00050309,120]
[356872546,1743348651988,-500.0,0.00050309,120]
[356872547,1743348651998,-500.0,0.00050309,120]
[356872548,1743348652007,-500.0,0.00050309,120]
[356872549,1743348652016,-500.0,0.00050309,120]
[356872550,1743348652025,-500.0,0.00050309,120]
[356872551,1743348652035,-835.68,0.00050309,120]
[356872552,1743348652044,-182.78705071,0.0005031,39]
[356872553,1743348652054,-500.0,0.0005031,120]
[356872554,1743348652063,-1387.03,0.0005031,120]
[356872555,1743348652072,-1520.54,0.0005031,120]
[356872556,1743348652082,-577.13,0.0005031,30]
[356872557,1743348652092,-613.12,0.0005031,120]
[356872558,1743348652101,-500.0,0.0005031,120]
[356872559,1743348652111,-500.0,0.0005031,120]
[356872560,1743348652120,-500.0,0.0005031,120]
[356872561,1743348652129,-262.29891671,0.0005031,120]
[356872562,1743348652139,-500.0,0.0005031,120]
[356872563,1743348652149,-543.98,0.0005031,120]
[356872564,1743348652158,-500.0,0.0005031,120]
[356872565,1743348652168,-500.0,0.0005031,120]
[356872566,1743348652177,-500.0,0.0005031,120]
[356872567,1743348652187,-480.02127402,0.0005031,120]
[356872568,1743348652197,-500.0,0.0005031,120]
[356872569,1743348652206,-500.0,0.0005031,120]
[356872570,1743348652216,-500.0,0.0005031,120]
[356872571,1743348652225,-500.0,0.0005031,120]
[356872572,1743348652235,-500.0,0.0005031,120]
[356872573,1743348652244,-500.0,0.0005031,120]
[356872574,1743348652253,-608.87,0.0005031,120]
[356872575,1743348652262,-528.63447826,0.0005031,120]
[356872576,1743348652271,-229.9222189,0.0005031,120]
[356872577,1743348652280,-500.0,0.0005031,120]
[356872578,1743348652289,-500.0,0.0005031,120]
[356872579,1743348652299,-500.0,0.0005031,120]
[356872580,1743348652308,-500.0,0.0005031,120]
[356872581,1743348652318,-1010.2,0.0005031,30]
[356872582,1743348652327,-500.0,0.0005031,120]
[356872583,1743348652337,-500.0,0.0005031,120]
[356872584,1743348652346,-500.0,0.0005031,120]
[356872585,1743348652356,-500.0,0.0005031,120]
[356872586,1743348652366,-500.0,0.0005031,120]
[356872587,1743348652375,-1051.72,0.0005031,120]
[356872588,1743348652384,-500.0,0.0005031,120]
[356872589,1743348652394,-500.0,0.0005031,120]
[356872590,1743348652403,-500.0,0.0005031,120]
[356872591,1743348652412,-297.36724187,0.0005031,120]
[356872592,1743348652421,-500.0,0.0005031,120]
[356872593,1743348652431,-500.0,0.0005031,7]
[356872594,1743348652440,-769.73,0.0005031,120]
[356872595,1743348652449,-500.0,0.0005031,120]
[356872596,1743348652458,-500.0,0.0005031,120]
[356872597,1743348652468,-500.0,0.0005031,120]
[356872598,1743348652477,-500.0,0.0005031,120]
[356872599,1743348652486,-517.7811219,0.0005031,120]
[356872600,1743348652496,-500.0,0.0005031,120]
[356872601,1743348652506,-500.0,0.0005031,120]
[356872602,1743348652515,-772.28,0.0005031,120]
[356872603,1743348652524,-500.0,0.0005031,120]
[356872604,1743348652533,-500.0,0.0005031,120]
[356872605,1743348652543,-500.0,0.0005031,120]
[356872606,1743348652552,-2286.88,0.0005031,7]
[356872607,1743348652561,-625.72,0.0005031,120]
[356872608,1743348652571,-500.0,0.0005031,120]
[356872609,1743348652580,-500.0,0.0005031,120]
[356872610,1743348652589,-2337.55,0.0005031,120]
[356872611,1743348652598,-1479.36,0.0005031,120]
[356872612,1743348652607,-500.0,0.0005031,120]
[356872613,1743348652617,-500.0,0.0005031,16]
[356872614,1743348652627,-517.39,0.0005031,120]
[356872615,1743348652636,-500.0,0.0005031,120]
[356872616,1743348652645,-500.0,0.0005031,120]
[356872617,1743348652655,-159.82258768,0.0005035,89]
[356872618,1743348652664,-151.0,0.0005039,120]
[356872619,1743348652673,-207.088308,0.0005039,30]
[356872620,1743348652683,-151.0,0.0005039,120]
[356872621,1743348652697,-154.24803,0.0005039,120]
[356872622,1743348652707,-280.811991,0.00050398,3]
[356872623,1743348652716,-500.0,0.000504,120]
[356872624,1743348652726,-401.532232,0.0005041,120]
[356872625,1743348652736,-500.0,0.0005041,120]
[356872626,1743348652745,-500.0,0.0005041,120]
[356872627,1743348652754,-430.13215635,0.0005041,120]
[356872628,1743348652764,-500.0,0.0005041,120]
[356872629,1743348652774,-531.10534628,0.0005041,120]
[356872630,1743348652784,-336.7617641,0.0005041,120]
[356872631,1743348652793,-577.44,0.0005041,120]
[356872632,1743348652802,-500.0,0.0005041,120]
[356872633,1743348652812,-500.0,0.0005041,120]
[356872634,1743348652822,-500.0,0.0005041,120]
[356872635,1743348652832,-500.0,0.0005041,120]
[356872636,1743348652841,-500.0,0.0005041,120]
[356872637,1743348652850,-171.15223071,0.0005041,120]
[356872638,1743348652860,-500.0,0.0005041,120]
[356872639,1743348652869,-500.0,0.0005041,120]
[356872640,1743348652878,-500.0,0.0005041,120]
[356872641,1743348652887,-499.34360191,0.0005041,120]
[356872642,1743348652897,-1186.64,0.0005041,120]
[356872643,1743348652908,-469.43555149,0.0005041,120]
[356872644,1743348652920,-500.0,0.0005041,120]
[356872645,1743348652934,-500.0,0.0005041,120]
[356872646,1743348652947,-725.78,0.0005041,2]
[356872647,1743348652959,-438.3441464,0.0005041,120]
[356872648,1743348652970,-515.10373059,0.0005041,120]
[356872649,1743348652982,-897.95,0.0005041,120]
[356872650,1743348652994,-500.0,0.0005041,120]
[356872651,1743348653007,-500.0,0.0005041,120]
[356872652,1743348653019,-500.0,0.0005041,120]
[356872653,1743348653032,-500.0,0.0005041,120]
[356872654,1743348653044,-500.0,0.0005041,120]
[356872655,1743348653057,-500.0,0.0005041,120]
[356872656,1743348653068,-500.0,0.0005041,120]
[356872657,1743348653079,-500.0,0.0005041,120]
[356872658,1743348653089,-500.0,0.0005041,120]
[356872659,1743348653102,-621.48940925,0.0005041,120]
[356872660,1743348653114,-507.84,0.0005041,120]
[356872661,1743348653126,-1063.91,0.0005041,120]
[356872662,1743348653138,-500.0,0.0005041,7]
[356872663,1743348653150,-500.0,0.0005041,120]
[356872664,1743348653162,-239.76224848,0.0005041,120]
[356872665,1743348653175,-2000.0,0.0005041,2]
[356872666,1743348653188,-500.0,0.0005041,120]
[356872667,1743348653200,-500.0,0.0005041,120]
[356872668,1743348653212,-500.0,0.0005041,120]
[356872669,1743348653223,-500.0,0.0005041,120]
[356872670,1743348653237,-500.0,0.0005041,120]
[356872671,1743348653249,-500.0,0.0005041,120]
[356872672,1743348653261,-500.0,0.0005041,120]
[356872673,1743348653272,-500.0,0.0005041,2]
[356872674,1743348653285,-794.28,0.0005041,120]
[356872675,1743348653296,-500.0,0.0005041,120]
[356872676,1743348653309,-500.0,0.0005041,120]
[356872677,1743348653321,-500.0,0.0005041,120]
[356872678,1743348653334,-500.0,0.0005041,120]
[356872679,1743348653345,-500.0,0.0005041,120]
[356872680,1743348653357,-500.0,0.0005041,120]
[356872681,1743348653369,-151.0,0.0005041,120]
[356872682,1743348653379,-151.0,0.0005041,120]
[356872683,1743348653389,-266.452972,0.0005041,120]
[356872684,1743348653400,-158.44718239,0.0005041,120]
[356872685,1743348653411,-500.0,0.0005041,120]
[356872686,1743348653425,-185.87194329,0.0005041,120]
[356872687,1743348653438,-500.0,0.0005041,120]
[356872688,1743348653448,-151.0,0.0005041,120]
[356872689,1743348653458,-564.3818429,0.0005041,120]
[356872690,1743348653468,-648.34065907,0.0005041,120]
[356872691,1743348653479,-500.0,0.0005041,120]
[356872692,1743348653490,-500.0,0.0005041,120]
[356872693,1743348653503,-500.0,0.0005041,120]
[356872694,1743348653514,-217.76585163,0.0005041,120]
[356872695,1743348653526,-500.0,0.0005041,120]
[356872696,1743348653536,-500.0,0.0005041,120]
[356872697,1743348653547,-500.0,0.0005041,120]
[356872698,1743348653557,-500.0,0.0005041,120]
[356872699,1743348653568,-500.0,0.0005041,120]
[356872700,1743348653579,-500.0,0.0005041,120]
[356872701,1743348653589,-500.0,0.0005041,120]
[356872702,1743348653600,-500.0,0.0005041,120]
[356872703,1743348653611,-500.0,0.0005041,120]
[356872704,1743348653622,-500.0,0.0005041,120]
[356872705,1743348653633,-500.0,0.0005041,120]
[356872706,1743348653643,-500.0,0.0005041,120]
[356872707,1743348653654,-500.0,0.0005041,120]
[356872708,1743348653664,-1817.7,0.0005041,120]
[356872709,1743348653675,-500.0,0.0005041,120]
[356872710,1743348653685,-4889.97,0.0005041,2]
[356872711,1743348653700,-538.96449228,0.0005041,120]
[356872712,1743348653711,-527.94,0.0005041,120]
[356872713,1743348653722,-566.67061558,0.0005041,120]
[356872714,1743348653733,-500.0,0.0005041,120]
[356872715,1743348653744,-500.0,0.0005041,120]
[356872716,1743348653755,-500.0,0.0005041,120]
[356872717,1743348653767,-500.0,0.0005041,120]
[356872718,1743348653779,-1190.48,0.0005041,120]
[356872719,1743348653790,-500.0,0.0005041,120]
[356872720,1743348653801,-500.0,0.0005041,120]
[356872721,1743348653812,-500.0,0.0005041,120]
[356872722,1743348653823,-500.0,0.0005041,120]
[356872723,1743348653834,-500.0,0.0005041,120]
[356872724,1743348653845,-1761.32,0.0005041,120]
[356872725,1743348653856,-500.0,0.0005041,100]
[356872726,1743348653868,-500.0,0.0005041,120]
[356872727,1743348653879,-500.0,0.00050574,2]
[356872728,1743348653890,-1560.44,0.00050574,2]
[356872729,1743348653901,-500.0,0.00050583,120]
[356872730,1743348653912,-500.0,0.00050583,120]
[356872731,1743348653923,-500.0,0.00050583,120]
[356872732,1743348653934,-624.02554545,0.00050583,120]
[356872733,1743348653945,-500.0,0.00050583,120]
[356872734,1743348653956,-500.0,0.00050583,120]
[356872735,1743348653968,-500.0,0.00050583,120]
[356872736,1743348653978,-233.69746954,0.00050583,120]
[356872737,1743348653989,-500.0,0.00050583,120]
[356872738,1743348654000,-835.68,0.00050583,120]
[356872739,1743348654010,-362.08630504,0.00050584,120]
[356872740,1743348654021,-1387.03,0.00050584,120]
[356872741,1743348654032,-1520.54,0.00050584,120]
[356872742,1743348654043,-577.13,0.00050584,30]
[356872743,1743348654054,-613.12,0.00050584,120]
[356872744,1743348654064,-558.42887244,0.00050584,120]
[356872745,1743348654075,-500.0,0.00050584,120]
[356872746,1743348654086,-500.0,0.00050584,120]
[356872747,1743348654097,-175.02086805,0.00050584,120]
[356872748,1743348654108,-543.98,0.00050584,120]
[356872749,1743348654121,-410.24334337,0.00050584,120]
[356872750,1743348654133,-299.64849066,0.00050584,120]
[356872751,1743348654143,-500.0,0.00050584,120]
[356872752,1743348654153,-333.75028614,0.00050584,120]
[356872753,1743348654162,-500.0,0.00050584,120]
[356872754,1743348654171,-361.30610344,0.00050584,120]
[356872755,1743348654181,-500.0,0.00050584,120]
[356872756,1743348654190,-485.72625346,0.00050584,120]
[356872757,1743348654199,-500.0,0.00050584,120]
[356872758,1743348654208,-608.87,0.00050584,120]
[356872759,1743348654217,-500.0,0.00050584,120]
[356872760,1743348654227,-500.0,0.00050584,120]
[356872761,1743348654236,-500.0,0.00050584,120]
[356872762,1743348654246,-500.0,0.00050584,120]
[356872763,1743348654255,-1010.2,0.00050584,30]
[356872764,1743348654265,-500.0,0.00050584,120]
[356872765,1743348654274,-500.0,0.00050584,120]
[356872766,1743348654283,-500.0,0.00050584,120]
[356872767,1743348654292,-500.0,0.00050584,120]
[356872768,1743348654301,-500.0,0.00050584,120]
[356872769,1743348654310,-1051.72,0.00050584,120]
[356872771,1743348654320,-411.08364683,0.00050584,120]
[356872772,1743348654329,-500.0,0.00050584,120]
[356872773,1743348654338,-500.0,0.00050584,120]
[356872774,1743348654347,-500.0,0.00050584,120]
[356872775,1743348654357,-500.0,0.00050584,7]
[356872776,1743348654366,-769.73,0.00050584,120]
[356872777,1743348654376,-500.0,0.00050584,120]
[356872778,1743348654572,-500.0,0.00050584,120]
[356872779,1743348654586,-492.66306222,0.00050584,120]
[356872780,1743348654595,-500.0,0.00050584,120]
[356872781,1743348654605,-197.14693181,0.00050584,120]
[356872782,1743348654614,-500.0,0.00050584,120]
[356872783,1743348654623,-772.28,0.00050584,120]
[356872784,1743348654633,-500.0,0.00050584,120]
[356872785,1743348654642,-500.0,0.00050584,120]
[356872786,1743348654651,-500.0,0.00050584,120]
[356872787,1743348654661,-2286.88,0.00050584,7]
[356872788,1743348654670,-625.72,0.00050584,120]
[356872789,1743348654679,-500.0,0.00050584,120]
[356872790,1743348654688,-500.0,0.00050584,120]
[356872791,1743348654701,-2337.55,0.00050584,120]
[356872792,1743348654710,-1479.36,0.00050584,120]
[356872793,1743348654719,-500.0,0.00050584,120]
[356872794,1743348654729,-390.32970624,0.00050584,16]
[356872795,1743348654739,-517.39,0.00050584,120]
[356872796,1743348654748,-500.0,0.00050584,120]
[356872797,1743348654757,-500.0,0.00050584,120]
[356872798,1743348654767,-575.45844709,0.00050674,7]
[356872799,1743348654779,-500.0,0.00050683,120]
[356872800,1743348654788,-401.532232,0.00050684,120]
[356872801,1743348654798,-518.97634247,0.00050684,120]
[356872802,1743348654807,-500.0,0.00050684,120]
[356872803,1743348654816,-500.0,0.00050684,120]
[356872804,1743348654826,-577.44,0.00050684,120]
[356872805,1743348654835,-500.0,0.00050684,120]
[356872806,1743348654844,-500.0,0.00050684,120]
[356872807,1743348654853,-500.0,0.00050684,120]
[356872808,1743348654862,-500.0,0.00050684,120]
[356872809,1743348654872,-500.0,0.00050684,120]
[356872810,1743348654881,-500.0,0.00050684,120]
[356872811,1743348654890,-500.0,0.00050684,120]
[356872812,1743348654899,-500.0,0.00050684,120]
[356872813,1743348654909,-1186.64,0.00050684,120]
[356872814,1743348654918,-500.0,0.00050684,120]
[356872815,1743348654928,-500.0,0.00050684,120]
[356872816,1743348654937,-725.78,0.00050684,2]
[356872817,1743348654947,-897.95,0.00050684,120]
[356872818,1743348654956,-500.0,0.00050684,120]
[356872819,1743348654965,-500.0,0.00050684,120]
[356872820,1743348654974,-321.84338818,0.00050684,120]
[356872821,1743348654983,-500.0,0.00050684,120]
[356872822,1743348654993,-500.0,0.00050684,120]
[356872823,1743348655002,-500.0,0.00050684,120]
[356872824,1743348655011,-500.0,0.00050684,120]
[356872825,1743348655020,-500.0,0.00050684,120]
[356872826,1743348655030,-500.0,0.00050684,120]
[356872827,1743348655039,-507.84,0.00050684,120]
[356872828,1743348655048,-1063.91,0.00050684,120]
[356872829,1743348655057,-500.0,0.00050684,7]
[356872830,1743348655066,-500.0,0.00050684,120]
[356872831,1743348655075,-2000.0,0.00050684,2]
[356872832,1743348655085,-224.18655914,0.00050684,120]
[356872833,1743348655095,-500.0,0.00050684,120]
[356872834,1743348655104,-500.0,0.00050684,120]
[356872835,1743348655114,-500.0,0.00050684,120]
[356872836,1743348655124,-500.0,0.00050684,120]
[356872837,1743348655133,-500.0,0.00050684,120]
[356872838,1743348655142,-500.0,0.00050684,120]
[356872839,1743348655151,-500.0,0.00050684,2]
[356872840,1743348655160,-794.28,0.00050684,120]
[356872841,1743348655169,-500.0,0.00050684,120]
[356872842,1743348655178,-500.0,0.00050684,120]
[356872843,1743348655188,-500.0,0.00050684,120]
[356872844,1743348655197,-500.0,0.00050684,120]
[356872845,1743348655206,-233.1731883,0.00050684,120]
[356872846,1743348655215,-500.0,0.00050684,120]
[356872847,1743348655225,-500.0,0.00050684,120]
[356872848,1743348655235,-500.0,0.00050684,120]
[356872849,1743348655244,-246.28362235,0.00050684,120]
[356872850,1743348655254,-500.0,0.00050684,120]
[356872851,1743348655263,-500.0,0.00050684,120]
[356872852,1743348655273,-500.0,0.00050684,120]
[356872853,1743348655282,-500.0,0.00050684,120]
[356872854,1743348655291,-500.0,0.00050684,120]
[356872855,1743348655301,-270.15129196,0.00050684,120]
[356872856,1743348655310,-500.0,0.00050684,120]
[356872857,1743348655319,-429.79967136,0.00050684,120]
[356872858,1743348655328,-500.0,0.00050684,120]
[356872859,1743348655338,-597.89737819,0.00050684,120]
[356872860,1743348655348,-500.0,0.00050684,120]
[356872861,1743348655357,-500.0,0.00050684,120]
[356872862,1743348655367,-500.0,0.00050684,120]
[356872863,1743348655376,-500.0,0.00050684,120]
[356872864,1743348655386,-1817.7,0.00050684,120]
[356872865,1743348655396,-500.0,0.00050684,120]
[356872866,1743348655406,-4889.97,0.00050684,2]
[356872867,1743348655415,-527.94,0.00050684,120]
[356872868,1743348655425,-500.0,0.00050684,120]
[356872869,1743348655434,-500.0,0.00050684,120]
[356872870,1743348655444,-500.0,0.00050684,120]
[356872871,1743348655454,-500.0,0.00050684,120]
[356872872,1743348655463,-1190.48,0.00050684,120]
[356872873,1743348655472,-500.0,0.00050684,120]
[356872874,1743348655482,-500.0,0.00050684,120]
[356872875,1743348655492,-500.0,0.00050684,120]
[356872876,1743348655502,-500.0,0.00050684,120]
[356872877,1743348655511,-500.0,0.00050684,120]
[356872878,1743348655521,-1761.32,0.00050684,120]
[356872879,1743348655530,-500.0,0.00050684,100]
[356872880,1743348655540,-631.53691981,0.00050684,120]
[356872881,1743348655549,-156.87,0.000507,48]
[356872882,1743348655559,-156.87,0.000507,48]
[356872883,1743348655572,-2020.8,0.000508,14]
[356872884,1743348655581,-500.0,0.00050848,2]
[356872885,1743348655590,-1560.44,0.00050848,2]
[356872886,1743348655600,-500.0,0.00050857,120]
[356872887,1743348655609,-500.0,0.00050857,120]
[356872888,1743348655619,-155.07140533,0.00050857,120]
[356872889,1743348655628,-500.0,0.00050857,120]
[356872890,1743348655638,-162.65067559,0.00050857,120]
[356872891,1743348655647,-500.0,0.00050857,120]
[356872892,1743348655657,-500.0,0.00050857,120]
[356872893,1743348655666,-835.68,0.00050857,120]
[356872894,1743348655676,-1387.03,0.00050858,120]
[356872895,1743348655685,-1520.54,0.00050858,120]
[356872896,1743348655699,-577.13,0.00050858,30]
[356872897,1743348655708,-613.12,0.00050858,120]
[356872898,1743348655718,-300.50576254,0.00050858,120]
[356872899,1743348655727,-500.0,0.00050858,120]
[356872900,1743348655737,-543.98,0.00050858,120]
[356872901,1743348655746,-500.0,0.00050858,120]
[356872902,1743348655755,-500.0,0.00050858,120]
[356872903,1743348655764,-500.0,0.00050858,120]
[356872904,1743348655775,-500.0,0.00050858,120]
[356872905,1743348655786,-608.87,0.00050858,120]
[356872906,1743348655795,-500.0,0.00050858,120]
[356872907,1743348655804,-500.0,0.00050858,120]
[356872908,1743348655814,-500.0,0.00050858,120]
[356872909,1743348655823,-500.0,0.00050858,120]
[356872910,1743348655832,-1010.2,0.00050858,30]
[356872911,1743348655841,-500.0,0.00050858,120]
[356872912,1743348655850,-500.0,0.00050858,120]
[356872913,1743348655860,-436.80291515,0.00050858,120]
[356872914,1743348655869,-500.0,0.00050858,120]
[356872915,1743348655879,-500.0,0.00050858,120]
[356872916,1743348655888,-1051.72,0.00050858,120]
[356872917,1743348655897,-500.0,0.00050858,120]
[356872918,1743348655907,-500.0,0.00050858,120]
[356872919,1743348655916,-500.0,0.00050858,120]
[356872920,1743348655925,-500.0,0.00050858,7]
[356872921,1743348655935,-769.73,0.00050858,120]
[356872922,1743348655943,-500.0,0.00050858,120]
[356872923,1743348655953,-500.0,0.00050858,120]
[356872924,1743348655962,-500.0,0.00050858,120]
[356872925,1743348655971,-500.0,0.00050858,120]
[356872926,1743348655980,-772.28,0.00050858,120]
[356872927,1743348655990,-500.0,0.00050858,120]
[356872928,1743348656000,-500.0,0.00050858,120]
[356872929,1743348656010,-500.0,0.00050858,120]
[356872930,1743348656019,-2286.88,0.00050858,7]
[356872931,1743348656028,-625.72,0.00050858,120]
[356872932,1743348656037,-450.95552411,0.00050858,120]
[356872933,1743348656046,-500.0,0.00050858,120]
[356872934,1743348656055,-2337.55,0.00050858,120]